[Event "Susha Chess Blitz Women 2022"]
[Site "Shusha"]
[Date "2022.09.24"]
[Round "7"]
[White "Efroimski, Marsel"]
[Black "Fataliyeva, Ulviyya"]
[Result "1/2-1/2"]
[ECO "C09"]
[WhiteElo "2462"]
[BlackElo "2408"]
[Annotator "TA"]
[PlyCount "61"]
[EventDate "2022.09.24"]
[EventType "tourn"]
[EventCountry "AZE"]
[SourceTitle "playchess.com"]
[Source "ChessBase"]
[SourceQuality "1"]
[TimeControl "180+2"]

{[%evp 18,61,46,27,41,22,27,37,55,42,77,43,37,29,35,36,82,64,56,54,327,134,192,179,186,177,180,174,200,104,246,247,392,353,347,345,312,199,192,126,115,0,168,0,141,0]} 1. e4 {[%emt 0:00:00]} e6 {[%emt 0:00:01]} 2. d4 {[%emt 0:00:02]} d5 {[%emt 0:00:01]} 3. Nd2 {[%emt 0:00:01]} c5 {[%emt 0:00:02]} 4. Ngf3 {[%emt 0:00:02]} Nc6 {[%emt 0:00:22]} 5. exd5 {[%emt 0:00:09]} exd5 {[%emt 0:00:01]} 6. Bb5 {[%emt 0:00:01]} Bd6 {[%emt 0:00:03]} 7. dxc5 {[%emt 0:00:01]} Bxc5 8. Nb3 Bb6 {[%emt 0:00:21]} 9. O-O {[%emt 0:00:03]} Nge7 {[%emt 0:00:02]} 10. Re1 {[%emt 0:00:01]} O-O {[%emt 0:00:08] C09: French Tarrasch: 3...c5 4 exd5 exd5 5 Ngf3 Nc6.} 11. h3 {[%emt 0:00:04]} h6 {[%emt 0:00:21]} 12. Be3 {[%emt 0:00:04]} (12. c3 {is more complex.} Nf5 13. a4 a6 14. Bd3) 12... Bxe3 {[%emt 0:00:18] White is slightly better.} 13. Rxe3 {[%emt 0:00:01]} a6 {[%emt 0:00:12]} 14. Bf1 {[%emt 0:00:08] [#]} Qb6 $146 {[%emt 0:00:07]} ({Predecessor:} 14... Nf5 15. Rd3 Be6 16. Nbd4 Qf6 17. c3 Rad8 18. Qb3 Bc8 19. Rad1 Nfe7 20. Re3 Ng6 {0-1 (37) Tomb,M (2084)-Indjic,A (2607) Chess.com INT 2021}) 15. c3 {[%emt 0:00:03]} Bf5 {[%emt 0:00:02]} 16. Bd3 {[%emt 0:00:14]} Be6 {[%emt 0:00:14]} (16... Rad8 $14 {might be stronger.}) 17. Nbd4 {[%emt 0:00:02]} Nxd4 {[%emt 0:00:01]} 18. Nxd4 {[%emt 0:00:01] Hoping for Qe2.} Qxb2 {[%emt 0:00:10][%mdl 8192] [#]} (18... Nc6 $1 $14) 19. a4 {[%emt 0:00:32]} (19. Rb1 $18 {and White stays clearly on top.} Qa3 20. Rxb7) 19... Qb6 {[%emt 0:00:05]} (19... Rac8 $16) 20. Rb1 {[%emt 0:00:02]} Qc7 {[%emt 0:00:13]} 21. Nxe6 {[%emt 0:00:08]} fxe6 {[%emt 0:00:01]} 22. Rxe6 {[%emt 0:00:02]} Nc6 {[%emt 0:00:00]} 23. Qh5 {[%emt 0:00:07] Prevents Rae8.} (23. Qg4 $18 {And now Qg6 would win.} Ne5 24. Qg3) 23... Ne7 {[%emt 0:00:27]} (23... Qf7 $16 {might work better.} 24. Qg4 (24. Qxd5 Rad8 $17) 24... h5) 24. Qe2 {[%emt 0:00:19]} Nf5 {[%emt 0:00:07]} (24... Rf7 $142 25. Qe3 Kh8) 25. Bxf5 {[%emt 0:00:18]} Rxf5 {[%emt 0:00:01]} 26. Re7 {[%emt 0:00:01]} Qf4 {[%emt 0:00:17]} 27. Rbxb7 {[%emt 0:01:10]} ({Weaker is} 27. Rexb7 Raf8 $16) 27... Qc1+ {[%emt 0:00:01]} 28. Kh2 {[%emt 0:00:01] Really sharp!} (28. Qf1 $18 Qxf1+ 29. Kxf1) 28... Qf4+ $16 {[%emt 0:00:01]} 29. Kg1 {[%emt 0:00:06] White has more active pieces.} (29. g3 $16 Qxf2+ 30. Qxf2 Rxf2+ 31. Kg1) 29... Qc1+ $18 {[%emt 0:00:01]} 30. Kh2 {[%emt 0:00:01]} Qf4+ {[%emt 0:00:01] [#]} 31. Kg1 {Weighted Error Value: White=0.57/Black=0.48} (31. g3 $1 $16 Qxf2+ 32. Qxf2 Rxf2+ 33. Kg1) 1/2-1/2

[Event "Susha Chess Blitz Women 2022"]
[Site "Shusha"]
[Date "2022.09.24"]
[Round "7"]
[White "Zawadzka, Jolanta"]
[Black "Dzagnidze, Nana"]
[Result "1/2-1/2"]
[ECO "B51"]
[WhiteElo "2401"]
[BlackElo "2526"]
[Annotator "TA"]
[PlyCount "95"]
[EventDate "2022.09.24"]
[EventType "tourn"]
[EventCountry "AZE"]
[SourceTitle "playchess.com"]
[Source "ChessBase"]
[SourceQuality "1"]
[TimeControl "180+2"]

{[%evp 10,95,11,-3,0,0,4,11,8,0,2,-14,0,0,0,-38,0,0,-14,-69,-7,-7,0,-71,-70,-71,-71,-72,-71,-95,-84,-81,-66,-72,-72,-84,-84,-100,-77,-80,-65,-106,-39,-69,-30,-57,-56,-55,-59,-102,-3,-10,0,0,0,-39,-38,-42,-33,-398,-16,-252,0,0,0,0,0,0,0,0,0,0,0,0,0,0,0,0,0,0,0,0,0,0,0,0,0,0]} 1. e4 {[%emt 0:00:01]} c5 {[%emt 0:00:02]} 2. Nf3 {[%emt 0:00:01]} d6 {[%emt 0:00:00]} 3. Bb5+ {[%emt 0:00:02]} Nd7 {[%emt 0:00:02]} 4. O-O {[%emt 0:00:02]} a6 {[%emt 0:00:02]} 5. Bxd7+ {[%emt 0:00:02]} Bxd7 {[%emt 0:00:02]} 6. c3 {[%emt 0:00:01]} Nf6 {[%emt 0:00:06] B51: Sicilian: Moscow Variation (3 Bb5+) without 3...Bd7.} 7. Re1 {[%emt 0:00:01]} Bg4 8. h3 {[%emt 0:00:03]} Bh5 {[%emt 0:00:34]} 9. d4 {[%emt 0:00:02]} e6 {[%emt 0:00:02]} 10. Nbd2 {[%emt 0:00:13][%cal Bb1d2,Bd2f1,Bf1g3][%mdl 32]} cxd4 {[%emt 0:00:11]} 11. cxd4 {[%emt 0:00:02]} Be7 {[%emt 0:00:00]} 12. Nf1 {[%emt 0:00:03]} O-O {[%emt 0:00:06]} (12... d5 $5 {[%cal Rd5e4]} 13. e5 Ne4 $11) 13. Ng3 {[%emt 0:00:02]} Bg6 {[%emt 0:00:15] [#]} 14. Bd2 $146 {[%emt 0:00:08]} (14. Qb3 $11) ({Predecessor:} 14. Bg5 h6 15. Bxf6 Bxf6 16. e5 Be7 17. exd6 Qxd6 18. Ne5 Bh7 19. Qg4 f5 20. Qe2 {0-1 (63) Qiu,M (2149)-Gu,X (2219) Fuling 2022}) 14... Rc8 {[%emt 0:00:03]} (14... d5 $15) 15. Qb3 $11 {[%emt 0:00:07]} d5 {[%emt 0:00:27][%cal Rd5e4]} 16. e5 {[%emt 0:01:09] [#]} (16. Ne5 $11) 16... Ne4 $1 $17 {[%emt 0:00:01]} 17. Be3 {[%emt 0:00:19]} Nxg3 {[%emt 0:00:08]} 18. fxg3 {[%emt 0:00:02]} Qd7 {[%emt 0:00:10]} 19. Rac1 {[%emt 0:00:04] Inhibits Bc2.} h6 {[%emt 0:00:04]} 20. g4 {[%emt 0:00:04]} Rxc1 {[%emt 0:00:04]} 21. Rxc1 {[%emt 0:00:01]} Rc8 {[%emt 0:00:01]} 22. Rc3 {[%emt 0:00:06]} b5 {[%emt 0:00:13]} 23. a3 {[%emt 0:00:19] Against b4} Rc4 {[%emt 0:00:13]} 24. Nd2 {[%emt 0:00:05]} Rc6 {[%emt 0:00:00]} 25. Kh2 {[%emt 0:00:07]} f6 {[%emt 0:00:09]} ({Black should try} 25... Rb6 $17 26. Rc1 b4 27. axb4 Bxb4) 26. Nf3 {[%emt 0:00:07]} Be4 {[%emt 0:00:01]} 27. Bf4 {[%emt 0:00:15]} Rc4 {[%emt 0:00:11]} 28. exf6 {[%emt 0:00:05]} Bxf6 {[%emt 0:00:03] aiming for ...Bxf3. This bishop pair is nice.} ({But not} 28... gxf6 29. Rxc4 dxc4 30. Qe3 $11) 29. Be5 {[%emt 0:00:05]} Qf7 {[%emt 0:00:23]} (29... Bxf3 $17 30. Rxf3 Bxe5+ 31. dxe5 d4) 30. Rxc4 {[%emt 0:00:05]} dxc4 {[%emt 0:00:05]} 31. Qe3 {[%emt 0:00:02]} Bd5 {[%emt 0:00:17]} 32. g5 {[%emt 0:00:06]} hxg5 {[%emt 0:00:04]} 33. Nxg5 {[%emt 0:00:04]} Qg6 {[%emt 0:00:04]} 34. h4 {[%emt 0:00:03][%mdl 8192]} ({White should play} 34. Bxf6 $1 $15 gxf6 35. Nf3) 34... Qf5 $2 {[%emt 0:00:02]} ({Better is} 34... Qc2 $19 {[%csl Gd5][%cal Rc2g2]} 35. Qg3 Bxe5 36. dxe5 Qxb2) 35. Qg3 {[%emt 0:00:04] [#]} (35. Bxf6 $1 $11 {and White is okay.} gxf6 36. Nh3) 35... Kf8 $2 {[%emt 0:00:03]} (35... Bxe5 $1 $19 36. dxe5 Qc2) 36. Bxf6 $11 {[%emt 0:00:04] The position is equal.} gxf6 {[%emt 0:00:03]} 37. Nf3 {[%emt 0:00:01]} Bxf3 {[%emt 0:00:01]} 38. gxf3 {[%emt 0:00:03][%mdl 4096] Endgame KQ-KQ} Qc2+ {[%emt 0:00:01]} 39. Kh3 $1 {[%emt 0:00:01]} Qf5+ {[%emt 0:00:01]} 40. Kh2 {[%emt 0:00:01]} Qc2+ {[%emt 0:00:00]} 41. Kh3 $1 {[%emt 0:00:00]} Kf7 {[%emt 0:00:06]} 42. Qc7+ {[%emt 0:00:02]} Kg6 {[%emt 0:00:01]} 43. Qg3+ {[%emt 0:00:01]} Kf7 {[%emt 0:00:02]} 44. Qc7+ {[%emt 0:00:01]} Kg6 {[%emt 0:00:02]} 45. Qg3+ {[%emt 0:00:01]} Kh6 {[%emt 0:00:01] Strongly threatening ...Qf5+.} 46. Qf4+ {[%emt 0:00:01]} Kg7 {[%emt 0:00:02]} 47. Qc7+ {[%emt 0:00:02]} Kg6 {[%emt 0:00:04]} 48. Qg3+ {[%emt 0:00:01] Weighted Error Value: White=0.33/Black=0.30} 1/2-1/2

[Event "Susha Chess Blitz Women 2022"]
[Site "Shusha"]
[Date "2022.09.24"]
[Round "7"]
[White "Mammadova, Gulnar"]
[Black "Mammadzada, Gunay"]
[Result "1-0"]
[ECO "B90"]
[WhiteElo "2382"]
[BlackElo "2473"]
[Annotator "TA"]
[PlyCount "61"]
[EventDate "2022.09.24"]
[EventType "tourn"]
[EventCountry "AZE"]
[SourceTitle "playchess.com"]
[Source "ChessBase"]
[SourceQuality "1"]
[TimeControl "180+2"]

{[%evp 14,61,21,37,23,12,13,0,10,-22,10,-16,8,5,31,16,13,20,26,15,26,32,36,35,33,27,46,37,119,0,178,137,133,164,160,139,152,96,125,117,162,138,330,335,500,485,601,285,283,264]} 1. e4 {[%emt 0:00:02]} c5 {[%emt 0:00:00]} 2. Nf3 {[%emt 0:00:01]} d6 {[%emt 0:00:01]} 3. d4 {[%emt 0:00:01]} cxd4 {[%emt 0:00:02]} 4. Nxd4 {[%emt 0:00:02]} Nf6 {[%emt 0:00:00]} 5. Nc3 {[%emt 0:00:01]} a6 {[%emt 0:00:01]} 6. h3 {[%emt 0:00:01]} e6 {[%emt 0:00:06]} 7. g4 {[%emt 0:00:03]} h6 {[%emt 0:00:07]} 8. Bg2 {[%emt 0:00:02]} Be7 {[%emt 0:00:04] B81: Sicilian Scheveningen: Keres Attack.} 9. O-O {[%emt 0:00:03]} O-O {[%emt 0:00:33]} 10. Be3 {[%emt 0:00:02]} Nc6 {[%emt 0:00:03] The position is equal.} 11. Nde2 {[%emt 0:00:12]} Bd7 {[%emt 0:00:42]} 12. Ng3 {[%emt 0:00:17]} b5 {[%emt 0:00:01]} 13. f4 {[%emt 0:00:16] [#]} Nh7 $146 {[%emt 0:00:22]} ({Predecessor:} 13... Ne8 14. Qd2 Na5 15. b3 Rc8 16. Nce2 Qc7 17. Rad1 Nc6 18. c3 Bh4 19. Rc1 Ne7 {0-1 (44) Cladouras,P (2385)-Vegh,E (2370) Budapest 1989}) 14. Nce2 {[%emt 0:00:18]} Qc7 {[%emt 0:00:17]} 15. Qd2 {[%emt 0:00:21]} Rac8 {[%emt 0:00:06]} 16. c3 {[%emt 0:00:06]} Na5 {[%emt 0:00:29]} 17. b3 {[%emt 0:00:01] Prevents Nc4.} Bc6 {[%emt 0:00:10]} 18. g5 {[%emt 0:00:12]} hxg5 {[%emt 0:00:06]} 19. fxg5 {[%emt 0:00:01]} g6 {[%emt 0:00:03]} 20. h4 {[%emt 0:00:08]} d5 {[%emt 0:00:04]} (20... Bd7 $14) 21. e5 {[%emt 0:00:43]} ({Better is} 21. exd5 $16 Bxd5 22. Bxd5) 21... d4 $2 {[%emt 0:00:13]} (21... Bd7 $11 {and Black is okay.}) 22. cxd4 {[%emt 0:00:11] [#] Hoping for Rac1.} Bxg2 {[%emt 0:00:01]} 23. Kxg2 {[%emt 0:00:01]} Qb7+ {[%emt 0:00:06]} 24. Kh2 {[%emt 0:00:06] Active counter play!} Nc6 {[%emt 0:00:00]} 25. h5 {[%emt 0:00:05]} (25. Rad1 $142) 25... Nb4 {[%emt 0:00:03]} 26. Rac1 $36 {[%emt 0:00:12][%mdl 2048] Prevents Rc2. White is in control.} Nd5 {[%emt 0:00:04] [#]} 27. Ne4 $1 {[%emt 0:00:01]} Nxe3 $2 {[%emt 0:00:07] This costs Black the game.} (27... Rxc1 $16 28. Nxc1 (28. Qxc1 Rc8 $11) (28. Rxc1 gxh5 29. Nf6+ Kh8 $16) 28... gxh5) 28. Qxe3 $18 {[%emt 0:00:01]} b4 {[%emt 0:00:03]} (28... Rxc1 $142 29. Rxc1 Rc8) 29. Nf6+ {[%emt 0:00:04]} Kg7 {[%emt 0:00:03]} 30. Kg3 {[%emt 0:00:08]} (30. d5 $142) 30... Rxc1 {[%emt 0:00:00]} 31. Rxc1 {Weighted Error Value: White=0.45/Black=0.46} ({Don't do} 31. Nxc1 $6 gxh5 32. Nd3 (32. Nxh5+ Kh8 $16) (32. Qe2 Bxf6 33. gxf6+ Kh8 $14) 32... Qc6 $18) 1-0

[Event "Susha Chess Blitz Women 2022"]
[Site "Shusha"]
[Date "2022.09.24"]
[Round "7"]
[White "Balajayeva, Khanim"]
[Black "Ozturk Orenli, Kubra"]
[Result "0-1"]
[ECO "C47"]
[WhiteElo "2379"]
[BlackElo "2319"]
[Annotator "TA"]
[PlyCount "42"]
[EventDate "2022.09.24"]
[EventType "tourn"]
[EventCountry "AZE"]
[SourceTitle "playchess.com"]
[Source "ChessBase"]
[SourceQuality "1"]
[TimeControl "180+2"]

{[%evp 9,42,-6,57,39,54,59,68,76,83,74,88,52,46,33,28,14,41,34,71,12,57,64,50,31,55,36,39,14,24,0,32,0,56,-29998,-29999]} 1. e4 {[%emt 0:00:01]} e5 {[%emt 0:00:00]} 2. Nf3 {[%emt 0:00:00]} Nc6 {[%emt 0:00:01]} 3. Nc3 {[%emt 0:00:01]} Nf6 {[%emt 0:00:01]} 4. a3 {[%emt 0:00:01]} d5 {[%emt 0:00:18]} 5. Bb5 {[%emt 0:00:01]} dxe4 {[%emt 0:00:16]} (5... Nxe4 $11 6. Qe2 Nxc3 7. Qxe5+ Be7 8. Qxc3 O-O) 6. Nxe5 $1 $14 {[%emt 0:00:05] C47: Scotch Four Knights and Four Knights with 4 g3.} Bd7 {[%emt 0:00:20]} 7. Bxc6 {[%emt 0:00:27]} Bxc6 {[%emt 0:00:24]} 8. Nxc6 {[%emt 0:00:03] White is slightly better.} bxc6 {[%emt 0:00:01]} 9. O-O {[%emt 0:00:02]} Bd6 {[%emt 0:00:23] [#]} 10. d3 $146 {[%emt 0:00:05]} ({Predecessor:} 10. Re1 O-O 11. Nxe4 Re8 12. d3 Nxe4 13. dxe4 Rxe4 14. Be3 Qh4 15. g3 Qf6 16. c3 {½-½ (28) Komarov,V (1138)-Oberlaender,R (805) LSS email 2017}) 10... exd3 {[%emt 0:00:51]} 11. Qxd3 {[%emt 0:00:14] And now Re1+ would win.} O-O {[%emt 0:00:04]} 12. h3 {[%emt 0:00:02]} Be5 {[%emt 0:00:08]} 13. Qf3 {[%emt 0:00:08]} Qd6 {[%emt 0:00:12]} 14. Bg5 {[%emt 0:00:13]} (14. Rd1 $16 Qc5 15. Be3) 14... h6 {[%emt 0:00:05]} 15. Rad1 {[%emt 0:00:04]} Qe6 {[%emt 0:00:03]} 16. Bc1 {[%emt 0:00:05]} Rad8 {[%emt 0:00:04]} 17. Rfe1 {[%emt 0:00:05] [#] Strongly threatening Bf4.} Rxd1 {[%emt 0:00:07]} 18. Rxd1 {[%emt 0:00:02]} Re8 {[%emt 0:00:03]} 19. Be3 {[%emt 0:00:15]} a6 {[%emt 0:00:06]} 20. Bd4 {[%emt 0:00:28]} Bd6 {[%emt 0:00:02]} (20... Bxd4 $11 21. Rxd4 Qe1+ 22. Kh2 Qc1) 21. Bxf6 $4 {[%emt 0:00:15][%mdl 8192] [#]} (21. Kf1 $14) 21... Qe1+ $3 {[%emt 0:00:02][%mdl 576] Back Rank.  Weighted Error Value: White=0.50/Black=0.21 (precise)} 0-1

[Event "Susha Chess Blitz Women 2022"]
[Site "Shusha"]
[Date "2022.09.24"]
[Round "7"]
[White "Beydullayeva, Govhar"]
[Black "Arabidze, Meri"]
[Result "0-1"]
[ECO "E16"]
[WhiteElo "2346"]
[BlackElo "2422"]
[Annotator "TA"]
[PlyCount "98"]
[EventDate "2022.09.24"]
[EventType "tourn"]
[EventCountry "AZE"]
[SourceTitle "playchess.com"]
[Source "ChessBase"]
[SourceQuality "1"]
[TimeControl "180+2"]

{[%evp 15,98,13,22,-26,-28,-26,-35,-39,-6,-7,32,0,15,-33,-33,-52,20,10,12,5,16,0,0,0,0,14,45,50,33,50,114,0,0,0,0,-16,0,-12,-10,-41,-33,-33,-14,-38,-39,-77,-69,-70,-37,-93,-94,-117,-108,-123,-123,-123,-123,-123,-123,-123,-123,-123,0,-123,-123,-293,-123,-123,-50,-123,-123,-123,-123,-123,-123,-123,-123,-1229,-1104,-1157,-1116,-874,-874,-29988,-29989]} 1. d4 {[%emt 0:00:01]} Nf6 {[%emt 0:00:00]} 2. c4 {[%emt 0:00:01]} e6 {[%emt 0:00:01]} 3. Nf3 {[%emt 0:00:01]} Bb4+ {[%emt 0:00:01]} 4. Bd2 {[%emt 0:00:03]} Qe7 {[%emt 0:00:01]} 5. g3 {[%emt 0:00:07]} Nc6 {[%emt 0:00:01]} 6. Bg2 {[%emt 0:00:22]} Bxd2+ {[%emt 0:00:02]} 7. Qxd2 {[%emt 0:00:05]} Ne4 {[%emt 0:00:00]} 8. Qc2 {[%emt 0:00:13]} Qb4+ $1 {[%emt 0:00:02]} 9. Nbd2 {[%emt 0:00:07] Recently 9.Kf1 got a lot of attention. E11: Bogo-Indian.} (9. Kf1 $142) 9... Nxd2 $1 $11 {[%emt 0:00:09]} 10. Qxd2 {[%emt 0:00:03]} Qxc4 {[%emt 0:00:19]} 11. O-O {[%emt 0:00:02] Black is slightly better.} O-O {[%emt 0:00:10]} 12. Rfc1 {[%emt 0:00:05]} Qa6 {[%emt 0:00:10] [#]} 13. e4 $146 {[%emt 0:00:14][%mdl 1024] White has compensation.} ({Predecessor:} 13. b4 Qa4 14. b5 Qxb5 15. Rc5 Qa4 16. Rh5 d5 17. Qf4 Qb4 18. Qh4 h6 19. g4 {0-1 (33) Grochal,J (2302)-Yeletsky,I (2406) Chess.com INT 2019}) 13... d5 {[%emt 0:00:11]} 14. e5 {[%emt 0:00:11]} (14. exd5 $11 {is more appropriate.} exd5 15. Rc5) 14... Qb6 $15 {[%emt 0:00:10]} 15. Rc3 {[%emt 0:00:13]} Ne7 {[%emt 0:00:16]} (15... a5 $15) 16. Rb3 $11 {[%emt 0:00:40]} Qc6 {[%emt 0:00:01]} 17. Rc1 $36 {[%emt 0:00:01][%mdl 2048] White is pushing.} Qd7 {[%emt 0:00:02]} 18. Qc2 {[%emt 0:00:13]} c6 {[%emt 0:00:10]} 19. Ng5 {[%emt 0:00:01][%csl Gg5][%cal Rc2h7] [#]} Ng6 {[%emt 0:00:05]} 20. h4 {[%emt 0:00:01]} h6 {[%emt 0:00:01]} 21. h5 {[%emt 0:00:07]} hxg5 {[%emt 0:00:09]} 22. hxg6 {[%emt 0:00:01]} fxg6 {[%emt 0:00:15]} ({Better is} 22... a5 $14) 23. Qxg6 {[%emt 0:00:15]} (23. Bf1 $16) 23... Qf7 {[%emt 0:00:01]} 24. Qc2 {[%emt 0:00:17]} g4 {[%emt 0:00:01] Prevents Bf3.} 25. f3 {[%emt 0:00:06]} Bd7 {[%emt 0:00:12][%cal Oc6c5]} 26. fxg4 {[%emt 0:00:01] Hoping for Rf1.} b6 $1 {[%emt 0:00:03]} 27. Rf1 {[%emt 0:00:07]} Qe7 {[%emt 0:00:01]} 28. Rbf3 {[%emt 0:00:01]} Rxf3 {[%emt 0:00:06]} 29. Rxf3 {[%emt 0:00:01]} Rf8 {[%emt 0:00:01]} 30. Qd2 {[%emt 0:00:16]} Rxf3 {[%emt 0:00:08]} 31. Bxf3 $17 {[%emt 0:00:00][%mdl 4096] Endgame KQB-KQB} c5 {[%emt 0:00:00] Prevents b4.} 32. g5 {[%emt 0:00:04]} (32. Be2 $15) 32... cxd4 {[%emt 0:00:10][%cal Od4d3]} 33. Qxd4 {[%emt 0:00:03]} Qc5 {[%emt 0:00:02]} 34. Qxc5 {[%emt 0:00:01]} bxc5 {[%emt 0:00:01] KB-KB} 35. Kf2 {[%emt 0:00:03]} Kf7 {[%emt 0:00:06]} 36. Bh5+ {[%emt 0:00:00]} Ke7 {[%emt 0:00:02]} 37. Ke3 {[%emt 0:00:01]} Bb5 {[%emt 0:00:06]} 38. a3 {[%emt 0:00:05]} Bc4 {[%emt 0:00:04]} (38... a5 $17) 39. Bg6 {[%emt 0:00:03]} (39. b4 $1 $11 {was the only way to keep the balance.}) 39... d4+ {[%emt 0:00:05]} 40. Ke4 $2 {[%emt 0:00:03] [#]} (40. Kd2 $17) 40... Bd5+ {[%emt 0:00:07]} (40... Ba2 $1 $19 {[%cal Ra2b1] is more deadly. Threatens to win with ...Bb1+.} 41. Kf3 Bd5+ 42. Ke2 c4) 41. Kd3 {[%emt 0:00:01]} a5 {[%emt 0:00:01] Prevents b4.} (41... Bb3 $17) 42. Bh5 {[%emt 0:00:02]} (42. b4 $1 $15 axb4 43. axb4) 42... Kd7 {[%emt 0:00:13]} 43. Bd1 {[%emt 0:00:01]} Kc6 {[%emt 0:00:07] White must now prevent ...Bg2.} 44. Ba4+ {[%emt 0:00:02]} Kb6 {[%emt 0:00:01]} 45. Bd7 {[%emt 0:00:02]} Bb3 {[%emt 0:00:06]} 46. Bc8 $2 {[%emt 0:00:04][%mdl 8192]} (46. Be8 $17) 46... Kc6 $19 {[%emt 0:00:03]} 47. Ba6 {[%emt 0:00:02]} Kd5 {[%emt 0:00:04]} 48. Bb7+ {[%emt 0:00:02]} Kxe5 {[%emt 0:00:01]} 49. Be4 {[%emt 0:00:01]} c4+ {[%emt 0:00:02] Weighted Error Value: White=0.54/Black=0.16 (very precise)} 0-1

[Event "Susha Chess Blitz Women 2022"]
[Site "Shusha"]
[Date "2022.09.24"]
[Round "8"]
[White "Dzagnidze, Nana"]
[Black "Zawadzka, Jolanta"]
[Result "0-1"]
[ECO "D31"]
[WhiteElo "2526"]
[BlackElo "2401"]
[Annotator "TA"]
[PlyCount "108"]
[EventDate "2022.09.24"]
[EventType "tourn"]
[EventCountry "AZE"]
[SourceTitle "playchess.com"]
[Source "ChessBase"]
[SourceQuality "1"]
[TimeControl "180+2"]

{[%evp 9,108,0,-4,-15,-12,-27,-18,-25,-31,-36,-43,-41,-47,-40,-26,-34,-16,-45,-14,-34,-16,-7,0,0,0,-10,-4,-18,0,0,0,0,0,0,60,47,51,56,39,44,63,15,21,20,11,14,82,86,85,0,90,110,221,220,215,201,193,201,168,0,145,-22,-22,-138,-133,-228,-148,-161,-141,-614,-475,-455,-468,-610,-605,-586,-451,-427,-424,-775,-608,-608,-386,-364,-367,-364,-362,-1138,-1252,-29984,-29968,-29968,-29969,-29966,-29968,-29965,-29967,-29953,-9956,-1021,-966]} 1. c4 {[%emt 0:00:02]} e6 {[%emt 0:00:04]} 2. Nc3 {[%emt 0:00:07]} d5 {[%emt 0:00:02]} 3. d4 {[%emt 0:00:02]} c6 {[%emt 0:00:02]} 4. cxd5 {[%emt 0:00:08]} exd5 {[%emt 0:00:02]} 5. Qc2 {[%emt 0:00:08]} Ne7 {[%emt 0:00:07]} 6. Bf4 {[%emt 0:00:11] D31: Queen's Gambit Declined: Semi-Slav without ...Nf6 (+ Marshall Gambit and Noteboom) and Exchange Variation lines without ...Nf6.} Bf5 {[%emt 0:00:05]} 7. Qb3 {[%emt 0:00:01]} Qb6 {[%emt 0:00:11]} 8. Qxb6 {[%emt 0:00:38] The position is equal.} axb6 {[%emt 0:00:02] [#]} 9. e3 $146 {[%emt 0:00:07]} ({Predecessor:} 9. f3 b5 10. g4 Be6 11. e3 b4 12. Nd1 h5 13. gxh5 Rxh5 14. Bd3 Nf5 15. Ne2 {1-0 (33) Grosse Frintrop,G (1945)-Roth,M (2146) Germany 2015}) 9... Ng6 {[%emt 0:00:09]} 10. Bxb8 {[%emt 0:00:13]} Rxb8 {[%emt 0:00:01]} 11. Kd2 {[%emt 0:00:09]} Bd6 {[%emt 0:00:11]} 12. Bd3 {[%emt 0:00:03]} Ne7 {[%emt 0:00:10]} 13. Nge2 {[%emt 0:00:04]} Kd7 {[%emt 0:00:03]} 14. f3 {[%emt 0:00:03]} Bxd3 {[%emt 0:00:07]} 15. Kxd3 {[%emt 0:00:01]} f5 {[%emt 0:00:01]} 16. a4 {[%emt 0:00:26]} Rhe8 {[%emt 0:00:04]} 17. h3 {[%emt 0:00:04]} Ra8 {[%emt 0:00:07]} 18. g4 {[%emt 0:00:06]} g6 {[%emt 0:00:04]} 19. b3 {[%emt 0:00:08]} Rf8 {[%emt 0:00:34]} 20. f4 {[%emt 0:00:10]} Bc7 {[%emt 0:00:36]} 21. Ng1 {[%emt 0:00:04][%cal Be2g1,Bg1f3,Bf3e5][%mdl 32]} Rae8 {[%emt 0:00:01]} (21... h6 $11) 22. Nf3 {[%emt 0:00:02]} Nc8 {[%emt 0:00:04]} 23. Rag1 {[%emt 0:00:15]} Nd6 {[%emt 0:00:02]} 24. Ne5+ {[%emt 0:00:01]} Ke6 {[%emt 0:00:03]} 25. h4 {[%emt 0:00:05]} (25. Rg2 $14 {deserves consideration.}) 25... fxg4 $11 {[%emt 0:00:07]} 26. Rxg4 {[%emt 0:00:02]} Rf5 $1 {[%emt 0:00:20]} 27. h5 {[%emt 0:00:19]} gxh5 {[%emt 0:00:06]} (27... Rxh5 $11 {keeps the balance.} 28. Rxh5 gxh5) 28. Rg7 $36 {[%emt 0:00:05][%mdl 2048] Keeping Black busy.} Re7 {[%emt 0:00:03]} 29. Rg2 {[%emt 0:00:04]} ({White should try} 29. Rg8 $1 $16) 29... Ne8 {[%emt 0:00:04]} (29... Bd8 $1 $11) 30. Ne2 {[%emt 0:00:03] Pair of Knights!} Rg7 {[%emt 0:00:06]} (30... Nd6 $16) 31. Rxg7 $18 {[%emt 0:00:04]} Nxg7 {[%emt 0:00:02]} 32. Ng3 $1 {[%emt 0:00:01]} Rf8 {[%emt 0:00:02]} 33. Nxh5 {[%emt 0:00:02]} Nf5 {[%emt 0:00:03]} 34. Nf3 $2 {[%emt 0:00:01]} (34. Rg1 $1 $18) 34... h6 {[%emt 0:00:02]} (34... Rg8 $11 {remains equal.}) 35. Ne5 $2 {[%emt 0:00:08]} (35. Rg1 $16) 35... Rg8 $1 $11 {[%emt 0:00:01]} 36. Rh3 {[%emt 0:00:02] [#]} (36. Re1 $11) 36... Rg2 $1 $17 {[%emt 0:00:02]} 37. Rh1 {[%emt 0:00:01]} (37. Nf3 $17) 37... c5 {[%emt 0:00:03]} 38. dxc5 {[%emt 0:00:04]} bxc5 {[%emt 0:00:01] aiming for ...Rb2.} ({Reject} 38... Bxe5 $6 39. fxe5 Kxe5 40. cxb6 $11) 39. Rh3 $2 {[%emt 0:00:00][%mdl 8192] Loses the game.} (39. e4 $17 dxe4+ 40. Kxe4) 39... Rb2 {[%emt 0:00:01]} 40. Kc3 {[%emt 0:00:02] [#]} Ra2 {[%emt 0:00:01]} 41. Nf3 {[%emt 0:00:01]} Ba5+ {[%emt 0:00:01]} 42. Kd3 {[%emt 0:00:02]} Rb2 {[%emt 0:00:01]} ({Don't blunder} 42... c4+ $2 43. bxc4 Ra3+ 44. Kc2 $19) 43. Ng3 {[%emt 0:00:04]} Rxb3+ 44. Kc2 (44. Ke2 $142 Rxe3+ 45. Kf2) 44... Rc3+ {[%emt 0:00:03]} 45. Kb2 {[%emt 0:00:01]} Nxe3 {[%emt 0:00:02]} 46. Rxh6+ {[%emt 0:00:02]} Kd7 {[%emt 0:00:02]} 47. Ne5+ {[%emt 0:00:02]} Kc7 {[%emt 0:00:00] And now ...Nd1+ would win.} 48. Ne2 $2 {[%emt 0:00:03]} (48. Rh7+ Kb6 49. Nd7+ Ka7 50. Kb1) 48... Rc2+ $19 {[%emt 0:00:02]} 49. Kb3 {[%emt 0:00:02]} Rxe2 {[%emt 0:00:02]} 50. Rh7+ {[%emt 0:00:01]} Kb8 {[%emt 0:00:01]} 51. Nd7+ {[%emt 0:00:01]} Ka7 {[%emt 0:00:01]} 52. Nxc5 {[%emt 0:00:01]} Nc4 {[%emt 0:00:11][%csl Gc4][%cal Re2b2]} 53. Nd3 {[%emt 0:00:08]} Re3 {[%emt 0:00:06]} 54. Kc2 Na3+ {Weighted Error Value: White=0.65/Black=0.36} 0-1